[Event "November 21 Early 2023"]
[Site "https://www.chess.com"]
[Date "2023.11.21"]
[Round "8"]
[White "Odeh, Kenneth"]
[Black "Rian, Kapriaga"]
[Result "0-1"]
[Board "171"]
[TimeControl "180+1"]
[WhiteFideId "8500142"]
[BlackFideId "7103263"]
[WhiteElo "2031"]
[BlackElo "2309"]
[WhiteTeam "NGR"]
[BlackTeam "INA"]
[WhiteClock "0:00:00"]
[BlackClock "0:01:39"]

1. e4 {[%clk 0:01:52]}  c6 {[%clk 0:02:53]} 2. d4 {[%clk 0:01:51]}  d5 {[%clk 0:02:53]} 3. e5 {[%clk 0:01:51]}  Bf5 {[%clk 0:02:52]} 4. Bd3 {[%clk 0:01:51]}  Bxd3 {[%clk 0:02:51]} 5. Qxd3 {[%clk 0:01:52]}  e6 {[%clk 0:02:51]} 6. Nf3 {[%clk 0:01:52]}  Qa5+ {[%clk 0:02:47]} 7. Bd2 {[%clk 0:01:50]}  Qa6 {[%clk 0:02:48]} 8. Qxa6 {[%clk 0:01:49]}  Nxa6 {[%clk 0:02:48]} 9. c3 {[%clk 0:01:49]}  c5 {[%clk 0:02:48]} 10. a3 {[%clk 0:01:47]}  cxd4 {[%clk 0:02:45]} 11. cxd4 {[%clk 0:01:47]}  Nb8 {[%clk 0:02:45]} 12. Nc3 {[%clk 0:01:45]}  Nc6 {[%clk 0:02:44]} 13. O-O {[%clk 0:01:44]}  Nge7 {[%clk 0:02:43]} 14. Nb5 {[%clk 0:01:38]}  Rc8 {[%clk 0:02:41]} 15. Nd6+ {[%clk 0:01:36]}  Kd7 {[%clk 0:02:41]} 16. Nxc8 {[%clk 0:01:36]}  Nxc8 {[%clk 0:02:39]} 17. b4 {[%clk 0:01:34]}  a6 {[%clk 0:02:38]} 18. Rac1 {[%clk 0:01:33]}  Nb6 {[%clk 0:02:34]} 19. Rc2 {[%clk 0:01:24]}  Be7 {[%clk 0:02:31]} 20. Bc1 {[%clk 0:01:11]}  Nc4 {[%clk 0:02:29]} 21. Rd1 {[%clk 0:00:57]}  b5 {[%clk 0:02:29]} 22. Rd3 {[%clk 0:00:55]}  h6 {[%clk 0:02:24]} 23. Kf1 {[%clk 0:00:53]}  Ra8 {[%clk 0:02:17]} 24. Nd2 {[%clk 0:00:49]}  a5 {[%clk 0:02:14]} 25. Nxc4 {[%clk 0:00:46]}  bxc4 {[%clk 0:02:12]} 26. Rg3 {[%clk 0:00:44]}  axb4 {[%clk 0:02:09]} 27. axb4 {[%clk 0:00:39]}  Nxb4 {[%clk 0:02:09]} 28. Rd2 {[%clk 0:00:28]}  Ra1 {[%clk 0:02:07]} 29. Rd1 {[%clk 0:00:25]}  Bg5 {[%clk 0:02:06]} 30. Rxg5 {[%clk 0:00:15]}  hxg5 {[%clk 0:02:05]} 31. Ke2 {[%clk 0:00:14]}  f6 {[%clk 0:02:01]} 32. exf6 {[%clk 0:00:12]}  gxf6 {[%clk 0:02:00]} 33. Bd2 {[%clk 0:00:11]}  Ra2 {[%clk 0:01:55]} 34. Kf3 {[%clk 0:00:07]}  Nc6 {[%clk 0:01:51]} 35. Be3 {[%clk 0:00:06]}  Ra3 {[%clk 0:01:50]} 36. Rb1 {[%clk 0:00:05]}  Nxd4+ {[%clk 0:01:49]} 37. Kg4 {[%clk 0:00:04]}  Nf5 {[%clk 0:01:48]} 38. Rb7+ {[%clk 0:00:03]}  Ke8 {[%clk 0:01:48]} 39. Kh5 {[%clk 0:00:02]}  Nxe3 {[%clk 0:01:47]} 40. fxe3 {[%clk 0:00:02]}  Rxe3 {[%clk 0:01:45]} 41. Kg6 {[%clk 0:00:02]}  f5 {[%clk 0:01:45]} 42. Kf6 {[%clk 0:00:01]}  g4 {[%clk 0:01:40]} 43. h3 {[%clk 0:00:00]}  gxh3 {[%clk 0:01:39]} 0-1

[Event "November 21 Early 2023"]
[Site "https://www.chess.com"]
[Date "2023.11.21"]
[Round "8"]
[White "Reprintsev, Alexander"]
[Black "Saim, Mohamed Ilias"]
[Result "1-0"]
[Board "173"]
[TimeControl "180+1"]
[WhiteFideId "14100541"]
[BlackFideId "7900465"]
[WhiteElo "2229"]
[BlackElo "2063"]
[WhiteTeam "UKR"]
[BlackTeam "ALG"]
[WhiteClock "0:02:11"]
[BlackClock "0:01:35"]

1. e4 {[%clk 0:02:59]}  c5 {[%clk 0:02:59]} 2. b3 {[%clk 0:02:58]}  Nc6 {[%clk 0:02:56]} 3. Bb2 {[%clk 0:02:58]}  e5 {[%clk 0:02:55]} 4. f4 {[%clk 0:02:58]}  d6 {[%clk 0:02:54]} 5. Bb5 {[%clk 0:02:55]}  Bd7 {[%clk 0:02:52]} 6. Qf3 {[%clk 0:02:53]}  Nd4 {[%clk 0:02:47]} 7. Bxd7+ {[%clk 0:02:52]}  Qxd7 {[%clk 0:02:48]} 8. Qd3 {[%clk 0:02:48]}  Qg4 {[%clk 0:02:41]} 9. Bxd4 {[%clk 0:02:47]}  Qxg2 {[%clk 0:02:31]} 10. Qf3 {[%clk 0:02:47]}  Qxf3 {[%clk 0:02:29]} 11. Nxf3 {[%clk 0:02:47]}  exd4 {[%clk 0:02:26]} 12. c3 {[%clk 0:02:47]}  dxc3 {[%clk 0:02:24]} 13. Nxc3 {[%clk 0:02:47]}  O-O-O {[%clk 0:02:25]} 14. d4 {[%clk 0:02:46]}  Ne7 {[%clk 0:02:17]} 15. O-O-O {[%clk 0:02:44]}  Ng6 {[%clk 0:02:17]} 16. f5 {[%clk 0:02:43]}  Nf4 {[%clk 0:02:11]} 17. Ng5 {[%clk 0:02:42]}  Rd7 {[%clk 0:02:04]} 18. Rhf1 {[%clk 0:02:41]}  Nh5 {[%clk 0:02:00]} 19. dxc5 {[%clk 0:02:40]}  h6 {[%clk 0:01:56]} 20. Nf3 {[%clk 0:02:22]}  dxc5 {[%clk 0:01:56]} 21. Rxd7 {[%clk 0:02:22]}  Kxd7 {[%clk 0:01:57]} 22. Ne5+ {[%clk 0:02:22]}  Ke8 {[%clk 0:01:53]} 23. Nb5 {[%clk 0:02:21]}  f6 {[%clk 0:01:51]} 24. Ng6 {[%clk 0:02:20]}  Rg8 {[%clk 0:01:50]} 25. Rd1 {[%clk 0:02:15]}  Be7 {[%clk 0:01:47]} 26. Nc7+ {[%clk 0:02:11]}  Kf7 {[%clk 0:01:35]} 27. Rd7 {[%clk 0:02:11]} 1-0

[Event "November 21 Early 2023"]
[Site "https://www.chess.com"]
[Date "2023.11.21"]
[Round "8"]
[White "Dwilewicz, Katarzyna"]
[Black "Pasmendjambvirgulptipon98"]
[Result "1-0"]
[Board "175"]
[TimeControl "180+1"]
[WhiteFideId "1148486"]
[WhiteElo "2098"]
[BlackElo "2217"]
[WhiteTeam "POL"]
[WhiteClock "0:02:27"]
[BlackClock "0:01:33"]

1. e4 {[%clk 0:03:00]}  e5 {[%clk 0:02:52]} 2. Nf3 {[%clk 0:03:00]}  Nc6 {[%clk 0:02:51]} 3. Bc4 {[%clk 0:03:00]}  Bc5 {[%clk 0:02:50]} 4. c3 {[%clk 0:02:59]}  Nf6 {[%clk 0:02:49]} 5. d4 {[%clk 0:03:00]}  exd4 {[%clk 0:02:49]} 6. e5 {[%clk 0:02:59]}  d5 {[%clk 0:02:43]} 7. Bb5 {[%clk 0:03:00]}  Ne4 {[%clk 0:02:32]} 8. cxd4 {[%clk 0:02:59]}  Bb4+ {[%clk 0:02:32]} 9. Nbd2 {[%clk 0:02:55]}  Bg4 {[%clk 0:02:27]} 10. O-O {[%clk 0:02:48]}  Nxd2 {[%clk 0:02:23]} 11. Bxd2 {[%clk 0:02:47]}  Bxf3 {[%clk 0:02:19]} 12. Bxc6+ {[%clk 0:02:37]}  bxc6 {[%clk 0:02:19]} 13. gxf3 {[%clk 0:02:35]}  Be7 {[%clk 0:02:16]} 14. f4 {[%clk 0:02:34]}  O-O {[%clk 0:02:12]} 15. f5 {[%clk 0:02:34]}  c5 {[%clk 0:02:07]} 16. Qg4 {[%clk 0:02:30]}  f6 {[%clk 0:02:00]} 17. e6 {[%clk 0:02:29]}  cxd4 {[%clk 0:02:00]} 18. Bh6 {[%clk 0:02:27]}  g5 {[%clk 0:01:33]} 19. fxg6 {[%clk 0:02:27]} 1-0

[Event "November 21 Early 2023"]
[Site "https://www.chess.com"]
[Date "2023.11.21"]
[Round "8"]
[White "Pein, Jonathan"]
[Black "Nikulina, Alena"]
[Result "1-0"]
[Board "179"]
[TimeControl "180+1"]
[WhiteFideId "417092"]
[BlackFideId "4172051"]
[WhiteElo "2192"]
[BlackElo "1627"]
[WhiteTeam "ENG"]
[BlackTeam "RUS"]
[WhiteClock "0:00:11"]
[BlackClock "0:00:06"]

1. Nf3 {[%clk 0:03:00]}  d5 {[%clk 0:02:59]} 2. b3 {[%clk 0:02:59]}  c5 {[%clk 0:02:58]} 3. Bb2 {[%clk 0:02:59]}  Nc6 {[%clk 0:02:58]} 4. e3 {[%clk 0:02:59]}  Nf6 {[%clk 0:02:58]} 5. Bb5 {[%clk 0:02:59]}  Bd7 {[%clk 0:02:56]} 6. O-O {[%clk 0:02:58]}  e6 {[%clk 0:02:56]} 7. d4 {[%clk 0:02:55]}  a6 {[%clk 0:02:55]} 8. Bd3 {[%clk 0:02:55]}  Bd6 {[%clk 0:02:50]} 9. Nbd2 {[%clk 0:02:54]}  O-O {[%clk 0:02:48]} 10. Ne5 {[%clk 0:02:52]}  Nxd4 {[%clk 0:02:25]} 11. exd4 {[%clk 0:02:46]}  cxd4 {[%clk 0:02:20]} 12. Bxd4 {[%clk 0:02:44]}  Qc7 {[%clk 0:02:19]} 13. Ndf3 {[%clk 0:02:36]}  b5 {[%clk 0:02:14]} 14. Nxd7 {[%clk 0:02:32]}  Nxd7 {[%clk 0:02:12]} 15. Bxh7+ {[%clk 0:02:31]}  Kxh7 {[%clk 0:02:09]} 16. Ng5+ {[%clk 0:02:31]}  Kg6 {[%clk 0:02:09]} 17. Nxe6 {[%clk 0:02:01]}  fxe6 {[%clk 0:02:07]} 18. Qg4+ {[%clk 0:01:59]}  Kf7 {[%clk 0:02:04]} 19. Qxg7+ {[%clk 0:01:49]}  Ke8 {[%clk 0:02:04]} 20. Rfe1 {[%clk 0:01:46]}  e5 {[%clk 0:02:01]} 21. Rad1 {[%clk 0:01:23]}  e4 {[%clk 0:01:25]} 22. g3 {[%clk 0:01:15]}  Be5 {[%clk 0:01:24]} 23. Bxe5 {[%clk 0:00:55]}  Qxe5 {[%clk 0:01:24]} 24. Qg6+ {[%clk 0:00:48]}  Kd8 {[%clk 0:01:17]} 25. Qc6 {[%clk 0:00:45]}  Rc8 {[%clk 0:01:09]} 26. Qxa6 {[%clk 0:00:44]}  d4 {[%clk 0:01:03]} 27. Qb7 {[%clk 0:00:29]}  Rxc2 {[%clk 0:00:44]} 28. Rxe4 {[%clk 0:00:25]}  Qf5 {[%clk 0:00:21]} 29. Rf4 {[%clk 0:00:22]}  Qc5 {[%clk 0:00:17]} 30. Rfxd4 {[%clk 0:00:18]}  Qxd4 {[%clk 0:00:06]} 31. Rxd4 {[%clk 0:00:17]}  Rc7 {[%clk 0:00:07]} 32. Qxb5 {[%clk 0:00:15]}  Re8 {[%clk 0:00:05]} 33. Kg2 {[%clk 0:00:15]}  Re6 {[%clk 0:00:04]} 34. h4 {[%clk 0:00:15]}  Ke7 {[%clk 0:00:04]} 35. Qg5+ {[%clk 0:00:14]}  Nf6 {[%clk 0:00:04]} 36. Rf4 {[%clk 0:00:13]}  Rd7 {[%clk 0:00:02]} 37. Qg7+ {[%clk 0:00:12]}  Kd6 {[%clk 0:00:02]} 38. Qxf6 {[%clk 0:00:12]}  Rxf6 {[%clk 0:00:02]} 39. Rxf6+ {[%clk 0:00:13]}  Ke5 {[%clk 0:00:03]} 40. Rf3 {[%clk 0:00:13]}  Ra7 {[%clk 0:00:03]} 41. a4 {[%clk 0:00:14]}  Rb7 {[%clk 0:00:03]} 42. h5 {[%clk 0:00:14]}  Ra7 {[%clk 0:00:04]} 43. Kh3 {[%clk 0:00:14]}  Rh7 {[%clk 0:00:05]} 44. Kh4 {[%clk 0:00:13]}  Ke4 {[%clk 0:00:06]} 45. Rf4+ {[%clk 0:00:13]}  Ke5 {[%clk 0:00:06]} 46. b4 {[%clk 0:00:14]}  Rg7 {[%clk 0:00:05]} 47. a5 {[%clk 0:00:14]}  Ra7 {[%clk 0:00:06]} 48. h6 {[%clk 0:00:13]}  Rh7 {[%clk 0:00:05]} 49. Kg5 {[%clk 0:00:13]}  Rh8 {[%clk 0:00:05]} 50. Kg6 {[%clk 0:00:13]}  Ke6 {[%clk 0:00:06]} 51. Kg7 {[%clk 0:00:13]}  Rb8 {[%clk 0:00:07]} 52. h7 {[%clk 0:00:13]}  Rb7+ {[%clk 0:00:08]} 53. Kg6 {[%clk 0:00:13]}  Rb8 {[%clk 0:00:08]} 54. a6 {[%clk 0:00:13]}  Ra8 {[%clk 0:00:08]} 55. b5 {[%clk 0:00:13]}  Rh8 {[%clk 0:00:07]} 56. b6 {[%clk 0:00:12]}  Kd7 {[%clk 0:00:08]} 57. b7 {[%clk 0:00:12]}  Kc7 {[%clk 0:00:08]} 58. Kg7 {[%clk 0:00:12]}  Rb8 {[%clk 0:00:08]} 59. h8=Q {[%clk 0:00:11]}  Rxh8 {[%clk 0:00:08]} 60. Kxh8 {[%clk 0:00:12]}  Kb8 {[%clk 0:00:08]} 61. Rb4 {[%clk 0:00:11]}  Ka7 {[%clk 0:00:06]} 62. b8=Q+ {[%clk 0:00:11]} 1-0

[Event "November 21 Early 2023"]
[Site "https://www.chess.com"]
[Date "2023.11.21"]
[Round "8"]
[White "Zoete, Roelant"]
[Black "Zepeda Berlanga, Jan Enrique"]
[Result "0-1"]
[Board "182"]
[TimeControl "180+1"]
[WhiteFideId "40103269"]
[BlackFideId "5132355"]
[WhiteElo "2282"]
[BlackElo "1680"]
[WhiteTeam "NED"]
[BlackTeam "MEX"]
[WhiteClock "0:00:09"]
[BlackClock "0:00:02"]

1. e4 {[%clk 0:03:00]}  c5 {[%clk 0:02:37]} 2. Nc3 {[%clk 0:02:57]}  d6 {[%clk 0:02:37]} 3. f4 {[%clk 0:02:55]}  Nf6 {[%clk 0:02:38]} 4. Nf3 {[%clk 0:02:54]}  Nc6 {[%clk 0:02:38]} 5. Bb5 {[%clk 0:02:38]}  Bd7 {[%clk 0:02:36]} 6. d3 {[%clk 0:02:35]}  e6 {[%clk 0:02:34]} 7. O-O {[%clk 0:02:33]}  Be7 {[%clk 0:02:34]} 8. Qe1 {[%clk 0:02:33]}  O-O {[%clk 0:02:32]} 9. Qg3 {[%clk 0:02:28]}  Re8 {[%clk 0:02:28]} 10. Bxc6 {[%clk 0:01:52]}  Bxc6 {[%clk 0:02:25]} 11. f5 {[%clk 0:01:50]}  exf5 {[%clk 0:01:52]} 12. exf5 {[%clk 0:01:49]}  Qd7 {[%clk 0:01:31]} 13. Bf4 {[%clk 0:01:34]}  Nh5 {[%clk 0:01:16]} 14. Qg4 {[%clk 0:01:33]}  Nxf4 {[%clk 0:01:14]} 15. Qxf4 {[%clk 0:01:34]}  Bf6 {[%clk 0:01:12]} 16. Rae1 {[%clk 0:01:23]}  h6 {[%clk 0:01:11]} 17. Ne4 {[%clk 0:01:21]}  Bxb2 {[%clk 0:01:06]} 18. f6 {[%clk 0:01:18]}  Bxe4 {[%clk 0:00:58]} 19. dxe4 {[%clk 0:01:07]}  Bxf6 {[%clk 0:00:56]} 20. Rd1 {[%clk 0:01:05]}  Re6 {[%clk 0:00:40]} 21. e5 {[%clk 0:00:51]}  dxe5 {[%clk 0:00:15]} 22. Qf5 {[%clk 0:00:36]}  Qe7 {[%clk 0:00:15]} 23. Rd5 {[%clk 0:00:33]}  Rd8 {[%clk 0:00:14]} 24. Rxd8+ {[%clk 0:00:30]}  Qxd8 {[%clk 0:00:14]} 25. h3 {[%clk 0:00:30]}  e4 {[%clk 0:00:13]} 26. Nh2 {[%clk 0:00:27]}  Qd4+ {[%clk 0:00:14]} 27. Kh1 {[%clk 0:00:27]}  e3 {[%clk 0:00:14]} 28. Nf3 {[%clk 0:00:26]}  Qe4 {[%clk 0:00:10]} 29. Qxc5 {[%clk 0:00:24]}  e2 {[%clk 0:00:09]} 30. Re1 {[%clk 0:00:22]}  Bh4 {[%clk 0:00:08]} 31. Nxh4 {[%clk 0:00:20]}  Qxh4 {[%clk 0:00:07]} 32. Qc3 {[%clk 0:00:18]}  Qf2 {[%clk 0:00:06]} 33. Rg1 {[%clk 0:00:09]}  e1=Q {[%clk 0:00:03]} 34. Rxe1 {[%clk 0:00:09]}  Rxe1+ {[%clk 0:00:03]} 35. Kh2 {[%clk 0:00:09]}  Qf4+ {[%clk 0:00:03]} 36. g3 {[%clk 0:00:09]}  Qf2# {[%clk 0:00:02]} 0-1

[Event "November 21 Early 2023"]
[Site "https://www.chess.com"]
[Date "2023.11.21"]
[Round "8"]
[White "LLariMarc"]
[Black "Gyulamiryan-koryun"]
[Result "1-0"]
[Board "183"]
[TimeControl "180+1"]
[WhiteElo "2233"]
[BlackElo "1904"]
[WhiteClock "0:02:44"]
[BlackClock "0:00:25"]

1. d4 {[%clk 0:03:00]}  Nf6 {[%clk 0:02:58]} 2. Nf3 {[%clk 0:03:01]}  d5 {[%clk 0:02:58]} 3. Bg5 {[%clk 0:03:01]}  e6 {[%clk 0:02:55]} 4. e3 {[%clk 0:03:02]}  Be7 {[%clk 0:02:49]} 5. Nbd2 {[%clk 0:03:01]}  O-O {[%clk 0:02:45]} 6. Bd3 {[%clk 0:03:00]}  c5 {[%clk 0:02:44]} 7. c3 {[%clk 0:02:59]}  Nc6 {[%clk 0:02:43]} 8. O-O {[%clk 0:02:59]}  Bd7 {[%clk 0:02:43]} 9. Qe2 {[%clk 0:02:54]}  c4 {[%clk 0:02:39]} 10. Bc2 {[%clk 0:02:54]}  h6 {[%clk 0:02:37]} 11. Bh4 {[%clk 0:02:54]}  Nh7 {[%clk 0:02:19]} 12. Bxe7 {[%clk 0:02:53]}  Qxe7 {[%clk 0:02:12]} 13. e4 {[%clk 0:02:53]}  Ng5 {[%clk 0:01:44]} 14. Nxg5 {[%clk 0:02:48]}  Qxg5 {[%clk 0:01:41]} 15. Nf3 {[%clk 0:02:48]}  Qf4 {[%clk 0:01:33]} 16. g3 {[%clk 0:02:47]}  Qg4 {[%clk 0:01:30]} 17. e5 {[%clk 0:02:47]}  f5 {[%clk 0:01:24]} 18. Kg2 {[%clk 0:02:46]}  b5 {[%clk 0:01:07]} 19. b4 {[%clk 0:02:45]}  a5 {[%clk 0:01:06]} 20. a4 {[%clk 0:02:41]}  bxa4 {[%clk 0:00:47]} 21. b5 {[%clk 0:02:40]}  Na7 {[%clk 0:00:45]} 22. b6 {[%clk 0:02:40]}  Nb5 {[%clk 0:00:42]} 23. Qd2 {[%clk 0:02:31]}  a3 {[%clk 0:00:35]} 24. Ba4 {[%clk 0:02:30]}  Rab8 {[%clk 0:00:26]} 25. Bxb5 {[%clk 0:02:27]}  Bxb5 {[%clk 0:00:24]} 26. Rxa3 {[%clk 0:02:28]}  a4 {[%clk 0:00:22]} 27. Rb1 {[%clk 0:02:27]}  Rxb6 {[%clk 0:00:20]} 28. Rxa4 {[%clk 0:02:27]}  Rfb8 {[%clk 0:00:16]} 29. Rab4 {[%clk 0:02:27]}  Qg6 {[%clk 0:00:14]} 30. h4 {[%clk 0:02:24]}  Qf7 {[%clk 0:00:15]} 31. Ne1 {[%clk 0:02:23]}  Qc7 {[%clk 0:00:15]} 32. Nc2 {[%clk 0:02:19]}  Be8 {[%clk 0:00:15]} 33. Rxb6 {[%clk 0:02:19]}  Rxb6 {[%clk 0:00:15]} 34. Rxb6 {[%clk 0:02:20]}  Qxb6 {[%clk 0:00:15]} 35. Nb4 {[%clk 0:02:20]}  Bh5 {[%clk 0:00:13]} 36. Qa2 {[%clk 0:02:19]}  Be2 {[%clk 0:00:12]} 37. Qxe2 {[%clk 0:02:18]}  Qa5 {[%clk 0:00:11]} 38. Qa2 {[%clk 0:02:18]}  Qb5 {[%clk 0:00:10]} 39. Qa6 {[%clk 0:02:18]}  Qd7 {[%clk 0:00:08]} 40. Qc6 {[%clk 0:02:18]}  Qe7 {[%clk 0:00:07]} 41. Qd6 {[%clk 0:02:18]}  Qe8 {[%clk 0:00:06]} 42. Nc6 {[%clk 0:02:17]}  g5 {[%clk 0:00:05]} 43. hxg5 {[%clk 0:02:17]}  hxg5 {[%clk 0:00:05]} 44. Qd8 {[%clk 0:02:18]}  Kf8 {[%clk 0:00:04]} 45. Qxe8+ {[%clk 0:02:18]}  Kxe8 {[%clk 0:00:05]} 46. f4 {[%clk 0:02:19]}  g4 {[%clk 0:00:04]} 47. Kf2 {[%clk 0:02:18]}  Kd7 {[%clk 0:00:03]} 48. Nb4 {[%clk 0:02:14]}  Kc7 {[%clk 0:00:01]} 49. Ke3 {[%clk 0:02:14]}  Kb6 {[%clk 0:00:01]} 50. Kd2 {[%clk 0:02:15]}  Kb5 {[%clk 0:00:01]} 51. Kc2 {[%clk 0:02:16]}  Kb6 {[%clk 0:00:01]} 52. Kb2 {[%clk 0:02:16]}  Kb5 {[%clk 0:00:01]} 53. Ka3 {[%clk 0:02:17]}  Ka5 {[%clk 0:00:01]} 54. Nc6+ {[%clk 0:02:17]}  Kb6 {[%clk 0:00:01]} 55. Nd8 {[%clk 0:02:17]}  Kc7 {[%clk 0:00:01]} 56. Nxe6+ {[%clk 0:02:18]}  Kd7 {[%clk 0:00:02]} 57. Ng7 {[%clk 0:02:19]}  Ke7 {[%clk 0:00:01]} 58. Nxf5+ {[%clk 0:02:20]}  Ke6 {[%clk 0:00:01]} 59. Ne3 {[%clk 0:02:21]}  Ke7 {[%clk 0:00:01]} 60. Nxg4 {[%clk 0:02:22]}  Kd7 {[%clk 0:00:02]} 61. Ne3 {[%clk 0:02:22]}  Ke6 {[%clk 0:00:03]} 62. g4 {[%clk 0:02:23]}  Ke7 {[%clk 0:00:04]} 63. Kb4 {[%clk 0:02:24]}  Kd7 {[%clk 0:00:05]} 64. Kc5 {[%clk 0:02:25]}  Ke7 {[%clk 0:00:06]} 65. Nxd5+ {[%clk 0:02:24]}  Kd7 {[%clk 0:00:06]} 66. Ne3 {[%clk 0:02:25]}  Ke7 {[%clk 0:00:07]} 67. Kxc4 {[%clk 0:02:26]}  Kd7 {[%clk 0:00:08]} 68. Kd3 {[%clk 0:02:27]}  Ke7 {[%clk 0:00:09]} 69. c4 {[%clk 0:02:28]}  Kd7 {[%clk 0:00:10]} 70. Ke4 {[%clk 0:02:29]}  Ke7 {[%clk 0:00:11]} 71. d5 {[%clk 0:02:30]}  Kd7 {[%clk 0:00:12]} 72. c5 {[%clk 0:02:31]}  Ke7 {[%clk 0:00:13]} 73. f5 {[%clk 0:02:32]}  Kd7 {[%clk 0:00:14]} 74. g5 {[%clk 0:02:33]}  Ke7 {[%clk 0:00:15]} 75. Kf4 {[%clk 0:02:33]}  Kd7 {[%clk 0:00:15]} 76. Kg4 {[%clk 0:02:34]}  Ke7 {[%clk 0:00:16]} 77. Kh4 {[%clk 0:02:35]}  Kd7 {[%clk 0:00:17]} 78. Kh5 {[%clk 0:02:36]}  Ke7 {[%clk 0:00:18]} 79. Kh6 {[%clk 0:02:37]}  Kd7 {[%clk 0:00:19]} 80. g6 {[%clk 0:02:38]}  Ke7 {[%clk 0:00:20]} 81. f6+ {[%clk 0:02:39]}  Ke8 {[%clk 0:00:21]} 82. Nf5 {[%clk 0:02:39]}  Kf8 {[%clk 0:00:22]} 83. e6 {[%clk 0:02:40]}  Ke8 {[%clk 0:00:22]} 84. d6 {[%clk 0:02:41]}  Kf8 {[%clk 0:00:23]} 85. c6 {[%clk 0:02:42]}  Ke8 {[%clk 0:00:24]} 86. c7 {[%clk 0:02:43]}  Kf8 {[%clk 0:00:25]} 87. c8=Q# {[%clk 0:02:44]} 1-0

[Event "November 21 Early 2023"]
[Site "https://www.chess.com"]
[Date "2023.11.21"]
[Round "8"]
[White "bn1462"]
[Black "Vlasova, Nataliya"]
[Result "1-0"]
[Board "184"]
[TimeControl "180+1"]
[BlackFideId "4122682"]
[WhiteElo "1848"]
[BlackElo "1939"]
[BlackTeam "RUS"]
[WhiteClock "0:00:48"]
[BlackClock "0:01:58"]

1. d4 {[%clk 0:03:00]}  Nf6 {[%clk 0:03:00]} 2. c4 {[%clk 0:02:58]}  g6 {[%clk 0:03:00]} 3. g3 {[%clk 0:02:54]}  Bg7 {[%clk 0:03:01]} 4. Bg2 {[%clk 0:02:55]}  O-O {[%clk 0:03:01]} 5. Nf3 {[%clk 0:02:56]}  d6 {[%clk 0:03:01]} 6. O-O {[%clk 0:02:56]}  Nc6 {[%clk 0:03:02]} 7. d5 {[%clk 0:02:38]}  e5 {[%clk 0:03:03]} 8. dxc6 {[%clk 0:02:36]}  bxc6 {[%clk 0:03:03]} 9. Nc3 {[%clk 0:02:34]}  Bb7 {[%clk 0:02:58]} 10. e4 {[%clk 0:02:32]}  Qe7 {[%clk 0:02:56]} 11. Re1 {[%clk 0:02:30]}  Rad8 {[%clk 0:02:56]} 12. h3 {[%clk 0:02:26]}  Nd7 {[%clk 0:02:52]} 13. Be3 {[%clk 0:02:19]}  f5 {[%clk 0:02:50]} 14. Bg5 {[%clk 0:02:13]}  Nf6 {[%clk 0:02:49]} 15. Qc1 {[%clk 0:02:04]}  Qf7 {[%clk 0:02:45]} 16. Bxf6 {[%clk 0:01:48]}  Qxf6 {[%clk 0:02:44]} 17. Qg5 {[%clk 0:01:40]}  Qf7 {[%clk 0:02:40]} 18. Rad1 {[%clk 0:01:31]}  Qxc4 {[%clk 0:02:37]} 19. exf5 {[%clk 0:01:19]}  gxf5 {[%clk 0:01:58]} 20. Nxe5 {[%clk 0:00:48]} 1-0

[Event "November 21 Early 2023"]
[Site "https://www.chess.com"]
[Date "2023.11.21"]
[Round "9"]
[White "Nakamura, Hikaru"]
[Black "Carlsen, Magnus"]
[Result "0-1"]
[Board "1"]
[TimeControl "180+1"]
[WhiteFideId "2016192"]
[BlackFideId "1503014"]
[WhiteElo "2874"]
[BlackElo "2887"]
[WhiteTeam "USA"]
[BlackTeam "NOR"]
[WhiteClock "0:01:25"]
[BlackClock "0:02:25"]

1. h4 {[%clk 0:03:00]}  b5 {[%clk 0:02:58]} 2. h5 {[%clk 0:03:00]}  Bb7 {[%clk 0:02:58]} 3. d4 {[%clk 0:03:00]}  h6 {[%clk 0:02:57]} 4. Nf3 {[%clk 0:02:58]}  Nf6 {[%clk 0:02:56]} 5. Bf4 {[%clk 0:02:58]}  e6 {[%clk 0:02:51]} 6. e3 {[%clk 0:02:57]}  a6 {[%clk 0:02:52]} 7. Nbd2 {[%clk 0:02:53]}  Bd6 {[%clk 0:02:50]} 8. Bxd6 {[%clk 0:02:50]}  cxd6 {[%clk 0:02:51]} 9. Bc4 {[%clk 0:02:50]}  bxc4 {[%clk 0:02:50]} 10. Nxc4 {[%clk 0:02:45]}  Qc7 {[%clk 0:02:49]} 11. Ncd2 {[%clk 0:02:45]}  Nc6 {[%clk 0:02:49]} 12. c4 {[%clk 0:02:44]}  Ne7 {[%clk 0:02:48]} 13. Qe2 {[%clk 0:02:40]}  O-O {[%clk 0:02:47]} 14. e4 {[%clk 0:02:33]}  d5 {[%clk 0:02:47]} 15. cxd5 {[%clk 0:02:23]}  exd5 {[%clk 0:02:48]} 16. e5 {[%clk 0:02:24]}  Ne4 {[%clk 0:02:47]} 17. O-O {[%clk 0:02:24]}  a5 {[%clk 0:02:46]} 18. Rfc1 {[%clk 0:02:23]}  Qb6 {[%clk 0:02:47]} 19. Nb3 {[%clk 0:02:18]}  Rac8 {[%clk 0:02:44]} 20. Qe3 {[%clk 0:02:13]}  Rxc1+ {[%clk 0:02:40]} 21. Rxc1 {[%clk 0:02:11]}  a4 {[%clk 0:02:40]} 22. Nc5 {[%clk 0:02:11]}  Nxc5 {[%clk 0:02:40]} 23. Rxc5 {[%clk 0:02:06]}  Qxb2 {[%clk 0:02:40]} 24. g4 {[%clk 0:02:05]}  Qxa2 {[%clk 0:02:32]} 25. g5 {[%clk 0:02:05]}  Qb1+ {[%clk 0:02:32]} 26. Rc1 {[%clk 0:01:30]}  Qe4 {[%clk 0:02:30]} 27. Qa3 {[%clk 0:01:30]}  Qg4+ {[%clk 0:02:26]} 28. Kf1 {[%clk 0:01:25]}  Ba6+ {[%clk 0:02:25]} 0-1